fUSD/lending_fUSD_20250109
["ID","MTS","AMOUNT","RATE_DAILY","PERIOD"]
[348343578,1736457038842,-859.82,9.848e-05,2]
[348343580,1736457038853,-644.98,9.848e-05,2]
[348343582,1736457038862,-500.0,9.848e-05,2]
[348343584,1736457038871,-500.0,9.848e-05,2]
[348343586,1736457038880,-500.0,9.848e-05,2]
[348343588,1736457038890,-500.0,9.848e-05,2]
[348343590,1736457038899,-1286.35,9.848e-05,2]
[348343592,1736457038908,-563.43,9.848e-05,2]
[348343594,1736457038917,-500.0,9.848e-05,2]
[348343596,1736457038926,-500.0,9.848e-05,2]
[348343597,1736457038935,-500.0,9.848e-05,2]
[348343598,1736457038944,-500.0,9.848e-05,2]
[348343599,1736457038954,-526.76,9.848e-05,2]
[348343600,1736457038965,-3104.4,9.848e-05,2]
[348343601,1736457038975,-500.0,9.848e-05,2]
[348343602,1736457038984,-500.0,9.848e-05,2]
[348343603,1736457038994,-500.0,9.848e-05,2]
[348343604,1736457039003,-500.0,9.848e-05,2]
[348343605,1736457039012,-500.0,9.848e-05,2]
[348343606,1736457039024,-500.0,9.848e-05,2]
[348343607,1736457039034,-500.0,9.848e-05,2]
[348343608,1736457039045,-500.0,9.848e-05,2]
[348343609,1736457039056,-500.0,9.848e-05,2]
[348343610,1736457039065,-574.76,9.848e-05,2]
[348343611,1736457039074,-500.0,9.848e-05,2]
[348343612,1736457039083,-500.0,9.848e-05,2]
[348343613,1736457039092,-500.0,9.848e-05,2]
[348343614,1736457039102,-391.10151298,9.848e-05,2]
[348343645,1736457040408,-108.89848702,9.848e-05,2]
[348343647,1736457040418,-1884.27,9.848e-05,2]
[348343649,1736457040428,-413.72133888,9.848e-05,2]
[348343652,1736457040439,-86.27866112,9.848e-05,2]
[348343654,1736457040449,-733.1,9.848e-05,2]
[348343656,1736457040458,-500.0,9.848e-05,2]
[348343658,1736457040468,-500.0,9.848e-05,2]
[348343660,1736457040477,-129.77133782,9.848e-05,2]
[348343662,1736457040488,-370.22866218,9.848e-05,2]
[348343664,1736457040497,-500.0,9.848e-05,2]
[348343666,1736457040507,-437.84778395,9.848e-05,2]
[348343668,1736457040516,-3901.24000652,9.848e-05,2]
[348343670,1736457040527,-1276.29999348,9.848e-05,2]
[348343672,1736457040536,-500.0,9.848e-05,2]
[348343674,1736457040546,-500.0,9.848e-05,2]
[348343676,1736457040556,-500.0,9.848e-05,2]
[348343678,1736457040566,-747.01,9.848e-05,2]
[348343680,1736457040576,-940.7,9.848e-05,2]
[348343682,1736457040586,-370.98523532,9.848e-05,2]
[348343746,1736457041170,-129.01476468,9.848e-05,2]
[348343748,1736457041179,-2683.65,9.848e-05,2]
[348343750,1736457041189,-500.0,9.848e-05,2]
[348343752,1736457041198,-500.0,9.848e-05,2]
[348343754,1736457041208,-500.0,9.848e-05,2]
[348343756,1736457041217,-500.0,9.848e-05,2]
[348343758,1736457041226,-500.0,9.848e-05,2]
[348343760,1736457041236,-500.0,9.848e-05,2]
[348343762,1736457041245,-500.0,9.848e-05,2]
[348343764,1736457041254,-420.45088166,9.848e-05,2]
[348343766,1736457041266,-79.54911834,9.848e-05,2]
[348343768,1736457041277,-535.64,9.848e-05,2]
[348343770,1736457041286,-308.01088166,9.848e-05,2]
[348343772,1736457041298,-191.98911834,9.848e-05,2]
[348343774,1736457041307,-500.0,9.848e-05,2]
[348343776,1736457041317,-500.0,9.848e-05,2]
[348343778,1736457041326,-500.0,9.848e-05,2]
[348343780,1736457041335,-500.0,9.848e-05,2]
[348343783,1736457041349,-500.0,9.848e-05,2]
[348343785,1736457041359,-500.0,9.848e-05,2]
[348343786,1736457041368,-500.0,9.848e-05,2]
[348343789,1736457041378,-313.81952366,9.848e-05,2]
[348343791,1736457041389,-186.18047634,9.848e-05,2]
[348343793,1736457041398,-72.30585759,9.848e-05,2]
[348343796,1736457041424,-427.69414241,9.848e-05,2]
[348343798,1736457041434,-505.69533548,9.848e-05,2]
[348343800,1736457041443,-500.0,9.848e-05,2]
[348343802,1736457041452,-866.3,9.848e-05,2]
[348343804,1736457041461,-500.0,9.848e-05,2]
[348343807,1736457041471,-504.36680407,9.848e-05,2]
[348343809,1736457041481,-1687.04,9.848e-05,2]
[348343810,1736457041490,-500.0,9.848e-05,2]
[348343812,1736457041499,-4525.82,9.848e-05,2]
[348343814,1736457041509,-808.95,9.848e-05,2]
[348343816,1736457041519,-1912.45,9.848e-05,2]
[348343818,1736457041528,-390.74148734,9.848e-05,2]
[348343820,1736457041537,-366.82455846,9.848e-05,2]
[348343822,1736457041546,-1105.83,9.848e-05,2]
[348343824,1736457041556,-500.0,9.848e-05,2]
[348343826,1736457041565,-500.0,9.848e-05,2]
[348343828,1736457041574,-605.08746106,9.848e-05,2]
[348343830,1736457041583,-500.0,9.848e-05,2]
[348343832,1736457041593,-1108.32,9.848e-05,2]
[348343834,1736457041602,-500.0,9.848e-05,2]
[348343836,1736457041611,-500.0,9.848e-05,2]
[348343838,1736457041621,-466.45466118,9.848e-05,2]
[348343842,1736457041643,-33.54533882,9.848e-05,2]
[348343844,1736457041652,-445.95833681,9.848e-05,2]
[348343846,1736457041663,-643.71,9.848e-05,2]
[348343848,1736457041674,-3276.40166319,9.848e-05,2]
[348343850,1736457041683,-500.0,9.848e-05,2]
[348343852,1736457041693,-500.0,9.848e-05,2]
[348343854,1736457041702,-560.08,9.848e-05,2]
[348343856,1736457041712,-500.0,9.848e-05,2]
[348343858,1736457041722,-500.0,9.848e-05,2]
[348343859,1736457041733,-500.0,9.848e-05,2]
[348343860,1736457041742,-3081.65,9.848e-05,2]
[348343861,1736457041751,-500.0,9.848e-05,2]
[348343862,1736457041760,-500.0,9.848e-05,2]
[348343863,1736457041769,-500.0,9.848e-05,2]
[348343864,1736457041778,-890.46,9.848e-05,2]
[348343865,1736457041788,-500.0,9.848e-05,2]
[348343866,1736457041797,-500.0,9.848e-05,2]
[348343868,1736457041806,-524.76,9.848e-05,2]
[348343870,1736457041815,-2912.09,9.848e-05,2]
[348343872,1736457041825,-500.0,9.848e-05,2]
[348343874,1736457041834,-621.88,9.848e-05,2]
[348343876,1736457041843,-500.32936988,9.848e-05,2]
[348343878,1736457041853,-500.0,9.848e-05,2]
[348343880,1736457041863,-500.0,9.848e-05,2]
[348343882,1736457041872,-500.0,9.848e-05,2]
[348343884,1736457041881,-500.0,9.848e-05,2]
[348343886,1736457041890,-500.0,9.848e-05,2]
[348343888,1736457041900,-875.65,9.848e-05,2]
[348343890,1736457041910,-659.06,9.848e-05,2]
[348343892,1736457041920,-500.0,9.848e-05,2]
[348343894,1736457041930,-624.7,9.848e-05,2]
[348343896,1736457041940,-911.61,9.848e-05,2]
[348343898,1736457041949,-508.04,9.848e-05,2]
[348343900,1736457041959,-500.0,9.848e-05,2]
[348343902,1736457041968,-500.0,9.848e-05,2]
[348343904,1736457041977,-500.0,9.848e-05,2]
[348343906,1736457041986,-754.3,9.848e-05,2]
[348343908,1736457041995,-500.0,9.848e-05,2]
[348343910,1736457042004,-500.0,9.848e-05,2]
[348343912,1736457042014,-1109.15,9.848e-05,2]
[348343914,1736457042023,-551.78,9.848e-05,2]
[348343916,1736457042032,-994.98,9.848e-05,2]
[348343918,1736457042042,-647.01,9.848e-05,2]
[348343920,1736457042054,-1932.76,9.849e-05,2]
[348343922,1736457042064,-2392.16,9.849e-05,2]
[348343924,1736457042074,-1427.08146605,9.849e-05,2]
[348343927,1736457042091,-2399.6,9.849e-05,2]
[348343929,1736457042102,-4538.68853395,9.849e-05,2]
[348343931,1736457042111,-1223.67,9.849e-05,2]
[348343933,1736457042121,-517.06402854,9.854e-05,2]
[348343935,1736457042130,-500.0,9.854e-05,2]
[348343937,1736457042140,-500.0,9.854e-05,2]
[348343939,1736457042152,-500.0,9.854e-05,2]
[348343941,1736457042161,-500.0,9.854e-05,2]
[348343943,1736457042172,-500.0,9.854e-05,2]
[348343945,1736457042182,-500.0,9.854e-05,2]
[348343947,1736457042191,-500.0,9.854e-05,2]
[348343949,1736457042200,-500.0,9.854e-05,2]
[348343951,1736457042209,-500.0,9.854e-05,2]
[348343953,1736457042219,-501.03771442,9.854e-05,2]
[348343955,1736457042228,-414.30957573,9.854e-05,2]
[348343957,1736457042237,-244.15026202,9.854e-05,2]
[348343959,1736457042246,-500.0,9.854e-05,2]
[348343961,1736457042256,-165.03743986,9.854e-05,2]
[348343963,1736457042265,-957.3,9.854e-05,2]
[348343965,1736457042274,-529.85,9.854e-05,2]
[348343967,1736457042284,-761.64,9.854e-05,2]
[348343969,1736457042292,-500.0,9.854e-05,2]
[348343971,1736457042301,-294.17141218,9.854e-05,2]
[348344007,1736457042584,-541.50858782,9.854e-05,2]
[348344009,1736457042593,-720.23,9.854e-05,2]
[348344011,1736457042603,-298.07141218,9.854e-05,2]
[348344022,1736457042671,-421.56858782,9.854e-05,2]
[348344024,1736457042681,-492.49903895,9.854e-05,2]
[348344043,1736457042845,-456.90096105,9.854e-05,2]
[348344045,1736457042855,-500.0,9.854e-05,2]
[348344047,1736457042865,-500.0,9.854e-05,2]
[348344049,1736457042874,-551.53,9.854e-05,2]
[348344051,1736457042883,-500.0,9.854e-05,2]
[348344053,1736457042892,-506.04652811,9.854e-05,2]
[348344055,1736457042902,-1142.59,9.854e-05,2]
[348344057,1736457042912,-594.11,9.854e-05,2]
[348344059,1736457042921,-1016.97,9.854e-05,2]
[348344061,1736457042931,-500.0,9.854e-05,2]
[348344063,1736457042941,-956.29,9.854e-05,2]
[348344065,1736457042950,-500.0,9.854e-05,2]
[348344067,1736457042959,-538.22,9.854e-05,2]
[348344069,1736457042970,-500.0,9.854e-05,2]
[348344071,1736457042979,-692.77,9.854e-05,2]
[348344073,1736457042988,-500.0,9.854e-05,2]
[348344075,1736457042998,-500.0,9.854e-05,2]
[348344077,1736457043008,-500.0,9.854e-05,2]
[348344079,1736457043017,-1611.57,9.854e-05,2]
[348344081,1736457043028,-537.52,9.854e-05,2]
[348344083,1736457043037,-500.0,9.854e-05,2]
[348344085,1736457043047,-1696.23,9.854e-05,2]
[348344087,1736457043057,-1758.41755504,9.854e-05,2]
[348344115,1736457043312,-4.33244496,9.854e-05,2]
[348344117,1736457043321,-671.66287504,9.854e-05,2]
[348344120,1736457043333,-291.0725715,9.854e-05,2]
[348344122,1736457043347,-833.02455346,9.854e-05,2]
[348344124,1736457043356,-4082.39,9.854e-05,2]
[348344126,1736457043365,-1503.93,9.854e-05,2]
[348344128,1736457043374,-1669.5,9.854e-05,2]
[348344130,1736457043383,-1531.41574655,9.854e-05,2]
[348344164,1736457043806,-347.817498,9.846e-05,2]
[348344166,1736457043817,-152.182502,9.846e-05,2]
[348344168,1736457043827,-137.2766972,9.854e-05,2]
[348344175,1736457043882,-283.74755625,9.854e-05,2]
[348344177,1736457043891,-633.73167689,9.854e-05,2]
[348344179,1736457043902,-320.73,9.854e-05,2]
[348344186,1736457043955,-1356.60832311,9.854e-05,2]
[348344188,1736457043965,-500.0,9.854e-05,2]
[348344190,1736457043974,-150.0,9.888e-05,2]
[348344192,1736457043983,-150.0,9.896e-05,2]
[348344194,1736457043992,-500.0,9.897e-05,2]
[348344196,1736457044001,-18147.06317658,9.9e-05,2]
[348344198,1736457044012,-17790.60868143,9.9e-05,2]
[348344303,1736457045805,-500.0,9.846e-05,2]
[348344304,1736457045815,-3001.00025,9.9e-05,2]
[348344305,1736457045862,-868.8542676,9.9e-05,2]
[348344306,1736457045873,-13146.26,9.9e-05,2]
[348344307,1736457045974,-966.46,9.9e-05,2]
[348344308,1736457045985,-1078.35727273,9.9e-05,2]
[348344324,1736457048956,451.43464799,6.436e-05,7]
[348344325,1736457049022,1206.39387713,6.436e-05,7]
[348344326,1736457302491,159.3164121,6.436e-05,30]
[348344328,1736457633679,-500.0,9.847e-05,7]
[348344329,1736457633731,-499500.0,0.0001,4]
[348344330,1736457914566,1371.03425074,0.000121,30]
[348344343,1736458099177,59361.55042413,0.00012,30]
[348344345,1736458215285,794.91,8.219e-05,2]
[348344354,1736458231946,-250.0,8.774e-05,2]
[348344355,1736458231955,-150.0,8.78e-05,2]
[348344356,1736458231965,-371.23,8.819e-05,2]
[348344357,1736458231974,-1000.0,8.825e-05,2]
[348344358,1736458231983,-7432.02639999,8.901e-05,2]
[348344359,1736458231995,-606.08360001,8.901e-05,2]
[348344360,1736458232005,-164.13,8.921e-05,2]
[348344361,1736458232014,-300.0,8.936e-05,2]
[348344362,1736458232024,-250.0,8.937e-05,2]
[348344363,1736458232033,-250.0,8.962e-05,2]
[348344364,1736458232043,-150.0,8.965e-05,2]
[348344365,1736458232052,-1293.2536673,8.983e-05,2]
[348344366,1736458232070,-559.1663327,8.983e-05,2]
[348344367,1736458232080,-1943.17,9.008e-05,2]
[348344368,1736458232089,-522.67,9.024e-05,2]
[348344369,1736458232098,-1100.0,9.09e-05,2]
[348344370,1736458232107,-500.0,9.09e-05,2]
[348344371,1736458232116,-183.69,9.12e-05,2]
[348344372,1736458232126,-150.0,9.215e-05,2]
[348344373,1736458232135,-150.0,9.403e-05,2]
[348344374,1736458232144,-396.44117719,9.459e-05,2]
[348344375,1736458232155,-3810.55882281,9.459e-05,2]
[348344376,1736458232164,-162.401,9.5e-05,2]
[348344377,1736458232172,-793.6056,9.746e-05,2]
[348344378,1736458232181,-908.97,9.746e-05,2]
[348344379,1736458232189,-2500.0,9.746e-05,2]
[348344380,1736458232196,-657.7079,9.746e-05,2]
[348344381,1736458232204,-1000.0,9.747e-05,2]
[348344382,1736458232212,-500.0,9.747e-05,2]
[348344383,1736458232220,-469.4066,9.747e-05,2]
[348344384,1736458232230,-5408.6033,9.747e-05,2]
[348344385,1736458232238,-5000.0,9.747e-05,2]
[348344386,1736458232247,-9256.66785978,9.748e-05,2]
[348344387,1736458232283,-1006.1552966,9.748e-05,2]
[348344388,1736458232295,-924.52,9.748e-05,2]
[348344389,1736458232317,-455.07,9.748e-05,2]
[348344390,1736458232329,-328.995,9.748e-05,2]
[348344391,1736458232363,150.0,8.404e-05,2]
[348344392,1736458232425,-5982.90094362,9.748e-05,2]
[348344393,1736458232435,-150.0,9.768e-05,2]
[348344394,1736458232445,-637.17538921,9.808e-05,2]
[348344395,1736458232455,-440.1488,9.808e-05,2]
[348344396,1736458232464,-150.0,9.823e-05,2]
[348344397,1736458232474,-500.0,9.845e-05,2]
[348344398,1736458232483,-855.37,9.845e-05,2]
[348344399,1736458232493,-3460.17,9.845e-05,2]
[348344400,1736458232503,-1814.85,9.845e-05,2]
[348344402,1736458232512,-1228.56,9.845e-05,2]
[348344404,1736458232521,-2915.68,9.845e-05,2]
[348344406,1736458232530,-500.0,9.845e-05,2]
[348344408,1736458232540,-500.0,9.845e-05,2]
[348344410,1736458232549,-943.65,9.845e-05,2]
[348344412,1736458232558,-500.0,9.845e-05,2]
[348344414,1736458232568,-500.0,9.845e-05,2]
[348344416,1736458232578,-500.0,9.845e-05,2]
[348344418,1736458232588,-548.19,9.845e-05,2]
[348344420,1736458232597,-1389.12,9.845e-05,2]
[348344422,1736458232607,-1032.52,9.845e-05,2]
[348344424,1736458232616,-500.0,9.845e-05,2]
[348344426,1736458232625,-500.0,9.845e-05,2]
[348344428,1736458232635,-2476.48,9.845e-05,2]
[348344430,1736458232644,-500.0,9.845e-05,2]
[348344432,1736458232653,-500.0,9.845e-05,2]
[348344434,1736458232663,-892.81,9.845e-05,2]
[348344436,1736458232672,-327.88970446,9.845e-05,2]
[348344438,1736458232682,-500.0,9.845e-05,2]
[348344440,1736458232692,-500.0,9.845e-05,2]
[348344442,1736458232701,-611.6,9.846e-05,2]
[348344444,1736458232711,-500.0,9.846e-05,2]
[348344446,1736458232720,-903.15,9.846e-05,2]
[348344448,1736458232729,-614.8,9.846e-05,2]
[348344450,1736458232739,-500.0,9.846e-05,2]
[348344452,1736458232748,-500.0,9.846e-05,2]
[348344454,1736458232758,-500.0,9.846e-05,2]
[348344456,1736458232767,-500.0,9.846e-05,2]
[348344458,1736458232776,-500.0,9.846e-05,2]
[348344460,1736458232785,-500.0,9.846e-05,2]
[348344462,1736458232794,-500.0,9.846e-05,2]
[348344464,1736458232804,-500.0,9.846e-05,2]
[348344466,1736458232814,-500.0,9.846e-05,2]
[348344468,1736458232823,-500.0,9.846e-05,2]
[348344470,1736458232833,-500.0,9.846e-05,2]
[348344472,1736458232843,-500.0,9.846e-05,2]
[348344474,1736458232853,-500.0,9.846e-05,2]
[348344476,1736458232863,-552.08,9.846e-05,2]
[348344507,1736458233178,-754.8,9.846e-05,2]
[348344510,1736458233190,-500.0,9.846e-05,2]
[348344512,1736458233200,-568.85732154,9.846e-05,2]
[348344514,1736458233210,-500.0,9.846e-05,2]
[348344516,1736458233221,-500.0,9.846e-05,2]
[348344518,1736458233231,-500.0,9.846e-05,2]
[348344520,1736458233240,-654.65,9.846e-05,2]
[348344522,1736458233250,-969.17,9.846e-05,2]
[348344524,1736458233261,-596.03,9.846e-05,2]
[348344526,1736458233279,-686.99,9.846e-05,2]
[348344528,1736458233290,-500.0,9.846e-05,2]
[348344530,1736458233300,-559.77,9.846e-05,2]
[348344532,1736458233310,-500.0,9.846e-05,2]
[348344534,1736458233321,-500.0,9.846e-05,2]
[348344535,1736458233332,-512.14,9.846e-05,2]
[348344537,1736458233342,-500.0,9.846e-05,2]
[348344539,1736458233355,-538.94,9.846e-05,2]
[348344541,1736458233365,-500.0,9.846e-05,2]
[348344543,1736458233376,-500.0,9.846e-05,2]
[348344545,1736458233386,-734.28,9.846e-05,2]
[348344547,1736458233396,-500.0,9.846e-05,2]
[348344549,1736458233406,-500.0,9.846e-05,2]
[348344551,1736458233418,-500.0,9.846e-05,2]
[348344554,1736458233428,-500.0,9.846e-05,2]
[348344556,1736458233438,-500.0,9.846e-05,2]
[348344558,1736458233448,-508.34,9.846e-05,2]
[348344560,1736458233458,-528.83,9.846e-05,2]
[348344562,1736458233468,-500.0,9.846e-05,2]
[348344563,1736458233478,-911.97,9.846e-05,2]
[348344566,1736458233488,-714.56,9.846e-05,2]
[348344568,1736458233499,-518.5,9.846e-05,2]
[348344570,1736458233509,-500.0,9.846e-05,2]
[348344571,1736458233519,-500.0,9.846e-05,2]
[348344573,1736458233528,-500.0,9.846e-05,2]
[348344575,1736458233540,-500.0,9.846e-05,2]
[348344578,1736458233550,-500.0,9.846e-05,2]
[348344580,1736458233560,-851.64,9.846e-05,2]
[348344581,1736458233571,-500.0,9.846e-05,2]
[348344583,1736458233581,-873.37,9.846e-05,2]
[348344585,1736458233592,-500.0,9.846e-05,2]
[348344587,1736458233602,-500.0,9.846e-05,2]
[348344589,1736458233613,-500.0,9.846e-05,2]
[348344591,1736458233623,-500.0,9.846e-05,2]
[348344593,1736458233633,-900.84,9.846e-05,2]
[348344595,1736458233644,-500.0,9.846e-05,2]
[348344597,1736458233654,-500.0,9.846e-05,2]
[348344599,1736458233664,-925.65,9.846e-05,2]
[348344601,1736458233674,-500.0,9.846e-05,2]
[348344603,1736458233685,-550.18,9.846e-05,2]
[348344605,1736458233694,-696.2,9.846e-05,2]
[348344606,1736458233704,-500.0,9.846e-05,2]
[348344608,1736458233715,-500.0,9.846e-05,2]
[348344610,1736458233728,-500.0,9.846e-05,2]
[348344612,1736458233737,-567.18,9.846e-05,2]
[348344614,1736458233748,-638.56,9.846e-05,2]
[348344616,1736458233758,-500.0,9.846e-05,2]
[348344618,1736458233769,-500.0,9.846e-05,2]
[348344620,1736458233779,-500.0,9.846e-05,2]
[348344622,1736458233790,-500.0,9.846e-05,2]
[348344624,1736458233800,-846.94,9.846e-05,2]
[348344626,1736458233811,-1245.36,9.846e-05,2]
[348344628,1736458233822,-500.0,9.846e-05,2]
[348344630,1736458233832,-500.0,9.846e-05,2]
[348344632,1736458233843,-1019.72,9.846e-05,2]
[348344634,1736458233853,-500.0,9.846e-05,2]
[348344636,1736458233863,-676.48,9.846e-05,2]
[348344638,1736458233873,-500.0,9.846e-05,2]
[348344640,1736458233883,-975.87,9.846e-05,2]
[348344642,1736458233893,-644.93,9.846e-05,2]
[348344644,1736458233903,-500.0,9.846e-05,2]
[348344646,1736458233913,-500.0,9.846e-05,2]
[348344647,1736458233924,-590.72,9.846e-05,2]
[348344649,1736458233933,-500.0,9.846e-05,2]
[348344651,1736458233943,-1011.58,9.846e-05,2]
[348344653,1736458233953,-500.0,9.846e-05,2]
[348344655,1736458233963,-542.18,9.846e-05,2]
[348344657,1736458233972,-500.0,9.846e-05,2]
[348344659,1736458233982,-500.0,9.846e-05,2]
[348344661,1736458233992,-500.0,9.846e-05,2]
[348344663,1736458234002,-500.0,9.846e-05,2]
[348344665,1736458234013,-548.84,9.846e-05,2]
[348344667,1736458234023,-500.0,9.846e-05,2]
[348344669,1736458234033,-500.0,9.846e-05,2]
[348344671,1736458234043,-637.15,9.846e-05,2]
[348344673,1736458234052,-1028.22,9.846e-05,2]
[348344675,1736458234062,-500.0,9.846e-05,2]
[348344677,1736458234072,-854.67,9.846e-05,2]
[348344679,1736458234081,-500.0,9.846e-05,2]
[348344681,1736458234091,-571.65,9.846e-05,2]
[348344683,1736458234100,-500.0,9.846e-05,2]
[348344685,1736458234109,-768.55,9.846e-05,2]
[348344687,1736458234119,-500.0,9.846e-05,2]
[348344689,1736458234129,-500.0,9.846e-05,2]
[348344691,1736458234139,-500.0,9.846e-05,2]
[348344693,1736458234149,-500.0,9.846e-05,2]
[348344695,1736458234158,-500.0,9.846e-05,2]
[348344697,1736458234168,-500.0,9.846e-05,2]
[348344699,1736458234178,-500.0,9.846e-05,2]
[348344701,1736458234188,-500.0,9.846e-05,2]
[348344703,1736458234198,-500.0,9.846e-05,2]
[348344705,1736458234208,-500.0,9.846e-05,2]
[348344707,1736458234218,-500.0,9.846e-05,2]
[348344709,1736458234228,-500.0,9.846e-05,2]
[348344711,1736458234237,-1014.57,9.846e-05,2]
[348344713,1736458234247,-500.0,9.846e-05,2]
[348344715,1736458234257,-500.0,9.846e-05,2]
[348344717,1736458234269,-1229.99,9.846e-05,2]
[348344719,1736458234279,-500.0,9.846e-05,2]
[348344721,1736458234289,-730.49,9.846e-05,2]
[348344723,1736458234300,-500.0,9.846e-05,2]
[348344725,1736458234311,-500.0,9.846e-05,2]
[348344727,1736458234320,-500.0,9.846e-05,2]
[348344729,1736458234330,-700.13,9.846e-05,2]
[348344731,1736458234340,-500.0,9.846e-05,2]
[348344733,1736458234350,-500.0,9.846e-05,2]
[348344735,1736458234363,-842.55,9.846e-05,2]
[348344737,1736458234373,-500.0,9.846e-05,2]
[348344739,1736458234382,-500.0,9.846e-05,2]
[348344741,1736458234392,-500.0,9.846e-05,2]
[348344743,1736458234402,-500.0,9.846e-05,2]
[348344745,1736458234412,-500.0,9.846e-05,2]
[348344747,1736458234422,-834.22,9.846e-05,2]
[348344749,1736458234431,-946.61,9.846e-05,2]
[348344751,1736458234441,-746.77,9.846e-05,2]
[348344752,1736458234451,-500.0,9.846e-05,2]
[348344753,1736458234460,-1003.55,9.846e-05,2]
[348344754,1736458234469,-500.0,9.846e-05,2]
[348344755,1736458234479,-500.0,9.846e-05,2]
[348344756,1736458234488,-500.0,9.846e-05,2]
[348344757,1736458234498,-869.95,9.846e-05,2]
[348344758,1736458234508,-580.43,9.846e-05,2]
[348344759,1736458234517,-500.0,9.846e-05,2]
[348344760,1736458234527,-500.0,9.846e-05,2]
[348344761,1736458234536,-500.0,9.846e-05,2]
[348344763,1736458234545,-717.7,9.846e-05,2]
[348344764,1736458234555,-1014.69,9.846e-05,2]
[348344766,1736458234565,-1781.22,9.846e-05,2]
[348344769,1736458234574,-500.0,9.846e-05,2]
[348344771,1736458234584,-893.24,9.846e-05,2]
[348344773,1736458234594,-1013.28,9.846e-05,2]
[348344775,1736458234604,-500.0,9.846e-05,2]
[348344777,1736458234614,-775.13,9.846e-05,2]
[348344778,1736458234623,-500.0,9.846e-05,2]
[348344781,1736458234633,-500.0,9.846e-05,2]
[348344783,1736458234642,-500.0,9.846e-05,2]
[348344785,1736458234652,-500.0,9.846e-05,2]
[348344787,1736458234662,-500.0,9.846e-05,2]
[348344789,1736458234671,-964.46,9.846e-05,2]
[348344791,1736458234681,-1093.986138,9.846e-05,2]
[348344793,1736458234691,-500.0,9.846e-05,2]
[348344795,1736458234700,-536.57,9.846e-05,2]
[348344797,1736458234710,-500.0,9.846e-05,2]
[348344799,1736458234719,-500.0,9.846e-05,2]
[348344801,1736458234729,-500.0,9.846e-05,2]
[348344803,1736458234739,-3384.73,9.846e-05,2]
[348344805,1736458234748,-500.0,9.846e-05,2]
[348344807,1736458234758,-500.0,9.846e-05,2]
[348344809,1736458234767,-500.0,9.846e-05,2]
[348344811,1736458234778,-1076.553991,9.846e-05,2]
[348344813,1736458234788,-500.0,9.846e-05,2]
[348344815,1736458234799,-1429.29,9.846e-05,2]
[348344817,1736458234809,-580.22,9.846e-05,2]
[348344819,1736458234818,-500.0,9.846e-05,2]
[348344821,1736458234828,-159.664057,9.846e-05,2]
[348344823,1736458234839,-500.0,9.846e-05,2]
[348344825,1736458234848,-157.994959,9.846e-05,2]
[348344827,1736458234858,-500.0,9.846e-05,2]
[348344829,1736458234868,-788.62,9.846e-05,2]
[348344831,1736458234878,-1167.43,9.846e-05,2]
[348344833,1736458234887,-3043.55,9.846e-05,2]
[348344835,1736458234898,-500.0,9.846e-05,2]
[348344837,1736458234907,-580.85,9.846e-05,2]
[348344839,1736458234916,-8746.66,9.846e-05,2]
[348344841,1736458234927,-888.0,9.846e-05,2]
[348344843,1736458234937,-500.0,9.846e-05,2]
[348344845,1736458234946,-1890.76,9.846e-05,2]
[348344847,1736458234956,-577.29,9.846e-05,2]
[348344850,1736458234966,-500.0,9.846e-05,2]
[348344852,1736458234976,-623.96186738,9.846e-05,2]
[348344854,1736458234986,-824.7,9.846e-05,2]
[348344856,1736458234996,-500.0,9.846e-05,2]
[348344858,1736458235006,-500.0,9.846e-05,2]
[348344860,1736458235016,-691.94,9.846e-05,2]
[348344862,1736458235026,-500.0,9.846e-05,2]
[348344864,1736458235036,-970.6,9.846e-05,2]
[348344866,1736458235045,-946.99,9.846e-05,2]
[348344868,1736458235054,-500.0,9.846e-05,2]
[348344870,1736458235064,-500.0,9.846e-05,2]
[348344872,1736458235074,-500.0,9.846e-05,2]
[348344874,1736458235084,-500.0,9.846e-05,2]